[Event "DVM U12 2019"]
[Site "Magedburg"]
[Date "2019.12.28"]
[Round "4"]
[White "Fruth, David"]
[Black "Spinka, Georg Kamil"]
[Result "1/2-1/2"]
[ECO "B54"]
[WhiteElo "1473"]
[BlackElo "1338"]
[Annotator "NA"]
[PlyCount "67"]
[EventDate "2019.12.27"]
[EventType "team-tourn"]
[EventRounds "7"]
[EventCountry "GER"]
[SourceTitle "playchess.com"]
[Source "ChessBase"]
[SourceQuality "1"]
[WhiteTeam "USV TU Dresden"]
[BlackTeam "SV Roter Turm Halle"]
[WhiteTeamCountry "GER"]
[TimeControl "40/5400+30:1800+30"]

1. e4 {[%emt 0:00:00]} c5 {[%emt 0:00:00]} 2. Nf3 {[%emt 0:00:00]} d6 {[%emt 0:00:00]} 3. d4 {[%emt 0:00:00]} cxd4 {[%emt 0:00:02]} 4. Nxd4 {[%emt 0:00:00]} Nf6 {[%emt 0:00:19]} 5. f3 {[%emt 0:00:00]} g6 {[%emt 0:00:23]} 6. c4 {[%emt 0:00:29]} Bg7 {[%emt 0:00:54]} 7. Nc3 {[%emt 0:00:12]} O-O {[%emt 0:00:12]} 8. Be2 {[%emt 0:00:05]} Nc6 {[%emt 0:01:17]} 9. Nxc6 {[%emt 0:00:30]} bxc6 {[%emt 0:00:15]} 10. O-O {[%emt 0:00:04]} Bd7 {[%emt 0:01:50]} 11. Qd3 {[%emt 0:00:25]} Re8 {[%emt 0:09:11]} 12. Rd1 {[%emt 0:00:17]} Qc7 {[%emt 0:04:41]} 13. Bg5 {[%emt 0:00:40]} Rad8 {[%emt 0:10:21]} 14. Rd2 {[%emt 0:02:07]} Be6 {[%emt 0:02:25]} 15. Rad1 {[%emt 0:00:44]} Rd7 {[%emt 0:03:41]} 16. f4 {[%emt 0:02:09]} Bg4 {[%emt 0:04:13]} 17. Bxg4 {[%emt 0:01:20]} Nxg4 {[%emt 0:02:08]} 18. h3 {[%emt 0:01:36]} Nf6 {[%emt 0:03:55]} 19. Bxf6 {[%emt 0:01:22]} Bxf6 {[%emt 0:00:18]} 20. e5 {[%emt 0:00:05]} Bg7 {[%emt 0:01:27]} 21. Qe3 {[%emt 0:01:20]} Red8 {[%emt 0:03:35]} 22. e6 {[%emt 0:01:50]} fxe6 {[%emt 0:00:39]} 23. Qxe6+ {[%emt 0:00:04]} Kf8 {[%emt 0:01:29]} 24. Ne4 {[%emt 0:00:11]} h6 {[%emt 0:27:41]} 25. Kh1 {[%emt 0:00:11]} d5 {[%emt 0:04:30]} 26. Qxg6 {[%emt 0:01:39]} dxe4 {[%emt 0:00:46]} 27. Qf5+ {[%emt 0:00:14]} Ke8 {[%emt 0:01:46]} 28. Qh5+ {[%emt 0:01:38]} Kf8 {[%emt 0:00:29]} 29. Qf5+ {[%emt 0:00:57]} Ke8 {[%emt 0:00:19]} 30. Qh7 {[%emt 0:00:54]} Kf7 {[%emt 0:00:22]} 31. Qf5+ {[%emt 0:01:17]} Ke8 {[%emt 0:00:09]} 32. Rxd7 {[%emt 0:01:20]} Rxd7 {[%emt 0:00:26]} 33. Qg6+ {[%emt 0:00:16]} Kf8 {[%emt 0:00:29]} 34. Qf5+ {[%emt 0:01:25] normal} 1/2-1/2

[Event "DVM U12 2019"]
[Site "Magedburg"]
[Date "2019.12.28"]
[Round "4"]
[White "Adelmeyer, Nelly"]
[Black "Richter, Nicholas"]
[Result "1-0"]
[ECO "A46"]
[WhiteElo "1453"]
[BlackElo "1448"]
[Annotator "NA"]
[PlyCount "90"]
[EventDate "2019.12.27"]
[EventType "team-tourn"]
[EventRounds "7"]
[EventCountry "GER"]
[SourceTitle "playchess.com"]
[Source "ChessBase"]
[SourceQuality "1"]
[WhiteTeam "SV Roter Turm Halle"]
[BlackTeam "USV TU Dresden"]
[WhiteTeamCountry "GER"]
[BlackTeamCountry "GER"]
[TimeControl "40/5400+30:1800+30"]

1. d4 {[%emt 0:00:00]} Nf6 {[%emt 0:00:00]} 2. Nf3 {[%emt 0:00:00]} c5 {[%emt 0:00:44]} 3. e3 {[%emt 0:00:00]} d5 {[%emt 0:01:04]} 4. Bd3 {[%emt 0:00:09]} Nc6 {[%emt 0:00:34]} 5. a3 {[%emt 0:00:24]} cxd4 {[%emt 0:00:47]} 6. exd4 {[%emt 0:00:48]} Bg4 {[%emt 0:00:53]} 7. Be3 {[%emt 0:01:03]} e6 {[%emt 0:00:42]} 8. Nbd2 {[%emt 0:00:36]} Bd6 {[%emt 0:00:31]} 9. O-O {[%emt 0:00:22]} Qc7 {[%emt 0:00:28]} 10. h3 {[%emt 0:00:59]} Bh5 {[%emt 0:00:37]} 11. Rc1 {[%emt 0:01:24]} O-O {[%emt 0:01:12]} 12. c4 {[%emt 0:02:15]} dxc4 {[%emt 0:00:46]} 13. Rxc4 {[%emt 0:00:15]} Nd5 {[%emt 0:02:23]} 14. Qc2 {[%emt 0:01:14]} Bg6 {[%emt 0:00:27]} 15. Bxg6 {[%emt 0:00:30]} hxg6 {[%emt 0:02:33]} 16. Re1 {[%emt 0:00:53]} Qe7 {[%emt 0:01:06]} 17. Qe4 {[%emt 0:04:39]} Rfd8 {[%emt 0:02:28]} 18. Bg5 {[%emt 0:01:37]} f6 {[%emt 0:08:01]} 19. Qxg6 {[%emt 0:16:56]} Nc7 {[%emt 0:07:21]} 20. Be3 {[%emt 0:07:49]} Qf7 {[%emt 0:00:55]} 21. Qxf7+ {[%emt 0:01:20]} Kxf7 {[%emt 0:00:02]} 22. Ne4 {[%emt 0:01:36]} Rd7 {[%emt 0:01:31]} 23. Nxd6+ {[%emt 0:02:14]} Rxd6 {[%emt 0:00:03]} 24. Bf4 {[%emt 0:00:23]} Rd7 {[%emt 0:00:21]} 25. Bxc7 {[%emt 0:01:35]} Rxc7 {[%emt 0:00:06]} 26. Rec1 {[%emt 0:03:11]} Rd7 {[%emt 0:00:13]} 27. b4 {[%emt 0:00:40]} Rad8 {[%emt 0:00:20]} 28. Rd1 {[%emt 0:01:13]} e5 {[%emt 0:00:34]} 29. b5 {[%emt 0:06:27]} Nxd4 {[%emt 0:00:43]} 30. Nxd4 {[%emt 0:00:08]} exd4 {[%emt 0:00:14]} 31. Kf1 {[%emt 0:01:35]} Ke6 {[%emt 0:04:21]} 32. Ke2 {[%emt 0:02:24]} Ke5 {[%emt 0:01:39]} 33. Kf3 {[%emt 0:01:19]} Ke6 {[%emt 0:03:24]} 34. g4 {[%emt 0:00:39]} Ke5 {[%emt 0:00:17]} 35. h4 {[%emt 0:01:00]} g6 {[%emt 0:03:45]} 36. a4 {[%emt 0:01:04]} Rd6 {[%emt 0:01:31]} 37. Rc7 {[%emt 0:01:24]} R6d7 {[%emt 0:00:05]} 38. Rc4 {[%emt 0:00:40]} Rd6 {[%emt 0:00:10]} 39. Rc5+ {[%emt 0:00:28]} Rd5 {[%emt 0:01:05]} 40. Rc7 {[%emt 0:01:03]} R5d7 {[%emt 0:00:06]} 41. Rc4 {[%emt 0:31:55]} Rd6 {[%emt 0:30:05]} 42. Rc5+ {[%emt 0:02:58]} Rd5 {[%emt 0:00:06]} 43. Re1+ {[%emt 0:01:31]} Kd6 {[%emt 0:00:29]} 44. Rxd5+ {[%emt 0:00:30]} Kxd5 {[%emt 0:00:07]} 45. Re7 {[%emt 0:00:39]} d3 {[%emt 0:00:35] normal} 1-0

[Event "DVM U12 2019"]
[Site "Magedburg"]
[Date "2019.12.28"]
[Round "4"]
[White "Bangiev, Anton"]
[Black "Stadelmann, Constantin"]
[Result "1-0"]
[ECO "B01"]
[WhiteElo "1431"]
[BlackElo "1295"]
[Annotator "NA"]
[PlyCount "49"]
[EventDate "2019.12.27"]
[EventType "team-tourn"]
[EventRounds "7"]
[EventCountry "GER"]
[SourceTitle "playchess.com"]
[Source "ChessBase"]
[SourceQuality "1"]
[WhiteTeam "Schachzentrum Bemerode"]
[BlackTeam "SSV Vimaria 91 Weimar"]
[WhiteTeamCountry "GER"]
[TimeControl "40/5400+30:1800+30"]

1. e4 {[%emt 0:00:00]} d5 {[%emt 0:00:00]} 2. exd5 {[%emt 0:00:00]} Qxd5 {[%emt 0:00:00]} 3. Nc3 {[%emt 0:00:00]} Qa5 {[%emt 0:00:00]} 4. d3 {[%emt 0:01:12]} Nf6 {[%emt 0:01:17]} 5. Bf4 {[%emt 0:00:21]} Bf5 {[%emt 0:01:00]} 6. Nf3 {[%emt 0:00:23]} Nc6 {[%emt 0:00:21]} 7. g3 {[%emt 0:00:51]} e6 {[%emt 0:01:13]} 8. Bg2 {[%emt 0:00:30]} Bc5 {[%emt 0:01:56]} 9. O-O {[%emt 0:03:21]} O-O {[%emt 0:01:42]} 10. Re1 {[%emt 0:02:38]} Rad8 {[%emt 0:00:42]} 11. Qd2 {[%emt 0:01:05]} Rfe8 {[%emt 0:00:33]} 12. a3 {[%emt 0:01:23]} Bd4 {[%emt 0:02:13]} 13. Rab1 {[%emt 0:06:46]} e5 {[%emt 0:02:03]} 14. Bg5 {[%emt 0:06:13]} e4 {[%emt 0:04:09]} 15. dxe4 {[%emt 0:10:04]} Bxe4 {[%emt 0:12:17]} 16. Nxe4 {[%emt 0:05:50]} Qf5 {[%emt 0:09:31]} 17. Nxf6+ {[%emt 0:11:06]} Bxf6 {[%emt 0:00:38]} 18. Bxf6 {[%emt 0:07:36]} gxf6 {[%emt 0:00:42]} 19. Rxe8+ {[%emt 0:01:13]} Rxe8 {[%emt 0:00:37]} 20. Rc1 {[%emt 0:01:22]} Re6 {[%emt 0:01:33]} 21. c3 {[%emt 0:01:59]} Rd6 {[%emt 0:01:21]} 22. Qe3 {[%emt 0:01:42]} Kg7 {[%emt 0:01:41]} 23. Nh4 {[%emt 0:03:29]} Qb5 {[%emt 0:03:03]} 24. b4 {[%emt 0:05:20]} Qa4 {[%emt 0:00:31]} 25. Nf5+ {[%emt 0:00:39] normal} 1-0

[Event "DVM U12 2019"]
[Site "Magedburg"]
[Date "2019.12.28"]
[Round "4"]
[White "Monninkhoff, Yari"]
[Black "Malchereck, Zion"]
[Result "0-1"]
[ECO "B21"]
[WhiteElo "1272"]
[BlackElo "1543"]
[Annotator "NA"]
[PlyCount "64"]
[EventDate "2019.12.27"]
[EventType "team-tourn"]
[EventRounds "7"]
[EventCountry "GER"]
[SourceTitle "playchess.com"]
[Source "ChessBase"]
[SourceQuality "1"]
[WhiteTeam "SV Empor Berlin"]
[BlackTeam "Hamburger SK"]
[WhiteTeamCountry "GER"]
[BlackTeamCountry "GER"]
[TimeControl "40/5400+30:1800+30"]

1. e4 {[%emt 0:00:00]} c5 {[%emt 0:00:00]} 2. d4 {[%emt 0:00:00]} cxd4 {[%emt 0:00:00]} 3. c3 {[%emt 0:00:18]} Nf6 {[%emt 0:00:00]} 4. e5 {[%emt 0:00:15]} Nd5 {[%emt 0:00:00]} 5. Nf3 {[%emt 0:00:17]} e6 {[%emt 0:00:10]} 6. cxd4 {[%emt 0:00:53]} Nc6 {[%emt 0:00:30]} 7. a3 {[%emt 0:00:43]} d6 {[%emt 0:02:06]} 8. Bd3 {[%emt 0:01:29]} Be7 {[%emt 0:01:43]} 9. O-O {[%emt 0:00:53]} O-O {[%emt 0:00:35]} 10. Qe2 {[%emt 0:01:11]} Bd7 {[%emt 0:00:55]} 11. Rd1 {[%emt 0:01:31]} Rc8 {[%emt 0:04:49]} 12. Bd2 {[%emt 0:02:34]} Na5 {[%emt 0:07:08]} 13. Bxa5 {[%emt 0:03:45]} Qxa5 {[%emt 0:00:03]} 14. Qe4 {[%emt 0:01:53]} f5 {[%emt 0:06:17]} 15. exf6 {[%emt 0:01:40]} Nxf6 {[%emt 0:00:13]} 16. Qe2 {[%emt 0:02:42]} Qb6 {[%emt 0:05:46]} 17. Ng5 {[%emt 0:01:27]} e5 {[%emt 0:18:37]} 18. dxe5 {[%emt 0:05:54]} dxe5 {[%emt 0:01:02]} 19. Bc4+ {[%emt 0:03:02]} Kh8 {[%emt 0:04:11]} 20. Nf7+ {[%emt 0:02:01]} Rxf7 {[%emt 0:00:10]} 21. Bxf7 {[%emt 0:01:37]} Bg4 {[%emt 0:00:08]} 22. Qe1 {[%emt 0:03:56]} Bxd1 {[%emt 0:00:25]} 23. Qxd1 {[%emt 0:01:13]} Ne4 {[%emt 0:00:29]} 24. Qe1 {[%emt 0:03:32]} Nxf2 {[%emt 0:00:47]} 25. Kf1 {[%emt 0:01:04]} Nd3 {[%emt 0:01:49]} 26. Qd2 {[%emt 0:01:29]} Qf6+ {[%emt 0:01:44]} 27. Ke2 {[%emt 0:01:06]} Nf4+ {[%emt 0:00:29]} 28. Ke3 {[%emt 0:00:59]} Qxf7 {[%emt 0:00:53]} 29. Nc3 {[%emt 0:00:59]} Bc5+ {[%emt 0:00:10]} 30. Ke4 {[%emt 0:00:41] normal} Rf8 {[%emt 0:02:01]} 31. g4 {[%emt 0:00:50]} Qc4+ {[%emt 0:01:03] normal} 32. Kxe5 {[%emt 0:00:22]} Qe6# 0-1

[Event "DVM U12 2019"]
[Site "Magedburg"]
[Date "2019.12.28"]
[Round "4"]
[White "Bock, Leonas"]
[Black "Struebel, Tobias"]
[Result "1-0"]
[ECO "A01"]
[WhiteElo "1226"]
[BlackElo "1379"]
[Annotator "NA"]
[PlyCount "63"]
[EventDate "2019.12.27"]
[EventType "team-tourn"]
[EventRounds "7"]
[EventCountry "GER"]
[SourceTitle "playchess.com"]
[Source "ChessBase"]
[SourceQuality "1"]
[WhiteTeam "SSV Vimaria 91 Weimar"]
[BlackTeam "Schachzentrum Bemerode"]
[BlackTeamCountry "GER"]
[TimeControl "40/5400+30:1800+30"]

1. b3 {[%emt 0:00:00]} e5 {[%emt 0:00:00]} 2. Bb2 {[%emt 0:00:00]} Nc6 {[%emt 0:00:00]} 3. e3 {[%emt 0:00:00]} a6 {[%emt 0:00:29]} 4. Nf3 {[%emt 0:00:51]} d6 {[%emt 0:00:14]} 5. h3 {[%emt 0:01:08]} Be6 {[%emt 0:02:28]} 6. Be2 {[%emt 0:01:10]} f6 {[%emt 0:00:19]} 7. d3 {[%emt 0:01:21]} Qd7 {[%emt 0:00:22]} 8. Nbd2 {[%emt 0:01:00]} O-O-O {[%emt 0:00:18]} 9. c4 {[%emt 0:02:44]} d5 {[%emt 0:06:30]} 10. Qc2 {[%emt 0:02:09]} dxc4 {[%emt 0:02:22]} 11. dxc4 {[%emt 0:01:08]} Bf5 {[%emt 0:02:01]} 12. e4 {[%emt 0:01:51]} Be6 {[%emt 0:00:19]} 13. O-O {[%emt 0:05:16]} Bb4 {[%emt 0:02:27]} 14. Rfd1 {[%emt 0:02:29]} Qf7 {[%emt 0:02:39]} 15. a3 {[%emt 0:02:56]} Bxd2 {[%emt 0:00:11]} 16. Rxd2 {[%emt 0:02:40]} Rxd2 {[%emt 0:00:23]} 17. Qxd2 {[%emt 0:01:03]} Qg6 {[%emt 0:00:24]} 18. Kh2 {[%emt 0:03:59]} Qxe4 {[%emt 0:01:41]} 19. Bd3 {[%emt 0:01:49]} Qf4+ {[%emt 0:00:15]} 20. Qxf4 {[%emt 0:00:25]} exf4 {[%emt 0:00:10]} 21. Re1 {[%emt 0:01:56]} Bf7 {[%emt 0:00:38]} 22. Ng5 {[%emt 0:04:47]} Bg6 {[%emt 0:04:26]} 23. Bxg6 {[%emt 0:00:41]} hxg6 {[%emt 0:00:09]} 24. Nf7 {[%emt 0:01:03]} Rh7 {[%emt 0:00:34]} 25. Re8+ {[%emt 0:00:17]} Kd7 {[%emt 0:00:13]} 26. Rxg8 {[%emt 0:00:33]} Ke7 {[%emt 0:00:32]} 27. Rh8 {[%emt 0:01:12]} Rxh8 {[%emt 0:01:10]} 28. Nxh8 {[%emt 0:00:26]} g5 {[%emt 0:00:13]} 29. h4 {[%emt 0:01:36]} Kf8 {[%emt 0:08:17]} 30. hxg5 {[%emt 0:00:45]} Kg8 {[%emt 0:04:31]} 31. gxf6 {[%emt 0:00:41]} Kxh8 {[%emt 0:00:10]} 32. f7 {[%emt 0:00:11] normal} 1-0

[Event "DVM U12 2019"]
[Site "Magedburg"]
[Date "2019.12.29"]
[Round "5"]
[White "Jones, Richard S."]
[Black "Fruth, David"]
[Result "0-1"]
[ECO "C42"]
[WhiteElo "2394"]
[BlackElo "1473"]
[Annotator "ChessBase"]
[PlyCount "86"]
[EventDate "2019.12.27"]
[EventType "team-tourn"]
[EventRounds "7"]
[EventCountry "GER"]
[SourceTitle "playchess.com"]
[Source "ChessBase"]
[SourceQuality "1"]
[WhiteTeam "SV Multatuli Ingelheim"]
[BlackTeam "USV TU Dresden"]
[WhiteTeamCountry "WLS"]
[BlackTeamCountry "GER"]
[TimeControl "40/5400+30:1800+30"]

1. e4 {[%emt 0:00:00]} e5 {[%emt 0:00:00]} 2. Nf3 {[%emt 0:00:00]} Nf6 {[%emt 0:01:07]} 3. Nc3 {[%emt 0:00:00]} Bb4 {[%emt 0:00:12]} 4. a3 {[%emt 0:03:49]} Bxc3 {[%emt 0:01:11]} 5. dxc3 {[%emt 0:00:49]} O-O {[%emt 0:00:05]} 6. Bg5 {[%emt 0:04:37]} c6 {[%emt 0:00:40]} 7. Be2 {[%emt 0:01:49]} d6 {[%emt 0:01:11]} 8. O-O {[%emt 0:03:17]} h6 {[%emt 0:00:13]} 9. Bh4 {[%emt 0:01:12]} Qe7 {[%emt 0:06:07]} 10. Re1 {[%emt 0:18:43]} g5 {[%emt 0:07:13]} 11. Bg3 {[%emt 0:01:31]} Nxe4 {[%emt 0:00:09]} 12. Bd3 {[%emt 0:04:08]} Nxg3 {[%emt 0:02:14]} 13. hxg3 {[%emt 0:01:56]} Bg4 {[%emt 0:00:57]} 14. Be2 {[%emt 0:05:33]} d5 {[%emt 0:00:24]} 15. Nxe5 {[%emt 0:03:52]} Bxe2 {[%emt 0:01:00]} 16. Rxe2 {[%emt 0:00:07]} Re8 17. Re1 {[%emt 0:02:37]} Na6 {[%emt 0:02:58]} 18. Ng4 {[%emt 0:03:48]} Qxe1+ {[%emt 0:01:13]} 19. Qxe1 {[%emt 0:00:26]} Rxe1+ {[%emt 0:00:01]} 20. Rxe1 {[%emt 0:00:07]} Kg7 {[%emt 0:00:18]} 21. Re7 {[%emt 0:02:58]} Nc5 {[%emt 0:00:48]} 22. f3 {[%emt 0:02:57]} h5 {[%emt 0:00:10]} 23. Nf2 {[%emt 0:00:28]} Kf6 {[%emt 0:00:13]} 24. Rc7 {[%emt 0:02:11]} Rb8 {[%emt 0:00:14]} 25. Nd3 {[%emt 0:06:04]} Na6 {[%emt 0:00:23]} 26. Rd7 {[%emt 0:00:48]} Ke6 {[%emt 0:00:09]} 27. Ne5 {[%emt 0:00:49]} Kxe5 {[%emt 0:00:35]} 28. Rxf7 {[%emt 0:00:15]} Nc5 {[%emt 0:00:28]} 29. Re7+ {[%emt 0:01:29]} Kf6 {[%emt 0:00:08]} 30. Re3 {[%emt 0:00:23]} Kf7 {[%emt 0:00:09]} 31. Kf2 {[%emt 0:03:36]} Re8 {[%emt 0:00:09]} 32. Rxe8 {[%emt 0:00:29]} Kxe8 {[%emt 0:00:01]} 33. Ke3 {[%emt 0:00:13]} Ke7 {[%emt 0:00:04]} 34. Kd4 {[%emt 0:01:03]} Kd6 {[%emt 0:00:08]} 35. c4 {[%emt 0:01:10]} Ne6+ {[%emt 0:00:06]} 36. Kd3 {[%emt 0:00:39]} h4 {[%emt 0:00:15]} 37. cxd5 {[%emt 0:01:21]} cxd5 {[%emt 0:00:08]} 38. gxh4 {[%emt 0:00:20]} Nf4+ {[%emt 0:00:11]} 39. Kd4 {[%emt 0:00:49]} gxh4 {[%emt 0:00:07]} 40. Ke3 {[%emt 0:01:13]} Nxg2+ {[%emt 0:00:08]} 41. Kf2 {[%emt 0:30:10]} h3 {[%emt 0:30:05]} 42. Kg3 {[%emt 0:00:35]} Nf4 {[%emt 0:00:02]} 43. Kh2 {[%emt 0:00:12]} Kc5 {normal} 0-1

[Event "DVM U12 2019"]
[Site "Magedburg"]
[Date "2019.12.29"]
[Round "5"]
[White "Kempe, Caius Emilian"]
[Black "Colditz, Elias"]
[Result "1/2-1/2"]
[ECO "E20"]
[WhiteElo "1832"]
[BlackElo "1708"]
[Annotator "NA"]
[PlyCount "53"]
[EventDate "2019.12.27"]
[EventType "team-tourn"]
[EventRounds "7"]
[EventCountry "GER"]
[SourceTitle "playchess.com"]
[Source "ChessBase"]
[SourceQuality "1"]
[WhiteTeam "USV TU Dresden"]
[BlackTeam "SV Multatuli Ingelheim"]
[WhiteTeamCountry "GER"]
[TimeControl "40/5400+30:1800+30"]

1. d4 {[%emt 0:00:00]} Nf6 {[%emt 0:00:00]} 2. c4 {[%emt 0:00:00]} e6 {[%emt 0:00:06]} 3. Nc3 {[%emt 0:00:00]} Bb4 {[%emt 0:00:58]} 4. f3 {[%emt 0:00:00]} O-O {[%emt 0:02:35]} 5. a3 {[%emt 0:02:04]} Bxc3+ {[%emt 0:00:50]} 6. bxc3 {[%emt 0:00:02]} d5 {[%emt 0:01:45]} 7. e3 {[%emt 0:00:14]} b6 {[%emt 0:04:02]} 8. cxd5 {[%emt 0:03:11]} exd5 {[%emt 0:00:28]} 9. Bd3 {[%emt 0:00:20]} Bb7 {[%emt 0:00:40]} 10. Ne2 {[%emt 0:00:23]} Nbd7 {[%emt 0:02:59]} 11. Kf2 {[%emt 0:05:12]} Re8 {[%emt 0:06:28]} 12. h4 {[%emt 0:00:24]} h5 {[%emt 0:01:46]} 13. Nf4 {[%emt 0:00:32]} Nf8 {[%emt 0:02:42]} 14. Ra2 {[%emt 0:08:55]} Ne6 {[%emt 0:09:33]} 15. Ne2 {[%emt 0:03:34]} c5 {[%emt 0:14:34]} 16. Ng3 {[%emt 0:00:38]} g6 {[%emt 0:01:16]} 17. Re2 {[%emt 0:05:43]} c4 {[%emt 0:01:02]} 18. Bb1 {[%emt 0:00:16]} Qd6 {[%emt 0:01:19]} 19. Qd2 {[%emt 0:04:13]} Ng7 {[%emt 0:02:30]} 20. Ree1 {[%emt 0:09:39]} Re7 {[%emt 0:05:05]} 21. Nf1 {[%emt 0:02:49]} Rae8 {[%emt 0:00:50]} 22. Qd1 {[%emt 0:01:54]} Bc8 {[%emt 0:01:10]} 23. Ng3 {[%emt 0:00:20]} Bb7 {[%emt 0:00:51]} 24. Bc2 {[%emt 0:08:19]} Bc6 {[%emt 0:02:10]} 25. Bb1 {[%emt 0:02:41]} Bb7 {[%emt 0:00:19]} 26. Bc2 {[%emt 0:07:23]} Bc6 {[%emt 0:00:42]} 27. Bb1 {normal} 1/2-1/2

[Event "DVM U12 2019"]
[Site "Magedburg"]
[Date "2019.12.29"]
[Round "5"]
[White "Freude, Max"]
[Black "Tomasjan, Samuel"]
[Result "1/2-1/2"]
[ECO "C10"]
[WhiteElo "1809"]
[BlackElo "1662"]
[Annotator "NA"]
[PlyCount "93"]
[EventDate "2019.12.27"]
[EventType "team-tourn"]
[EventRounds "7"]
[EventCountry "GER"]
[SourceTitle "playchess.com"]
[Source "ChessBase"]
[SourceQuality "1"]
[WhiteTeam "SV Empor Berlin"]
[BlackTeam "SF Brackel"]
[WhiteTeamCountry "GER"]
[BlackTeamCountry "GER"]
[TimeControl "40/5400+30:1800+30"]

1. e4 {[%emt 0:00:00]} e6 {[%emt 0:00:00]} 2. d4 {[%emt 0:02:13]} d5 {[%emt 0:00:00]} 3. Nd2 {[%emt 0:00:08]} dxe4 {[%emt 0:00:14]} 4. Nxe4 {[%emt 0:00:07]} Nd7 {[%emt 0:00:05]} 5. Nf3 {[%emt 0:00:08]} Ngf6 {[%emt 0:00:10]} 6. Nxf6+ {[%emt 0:00:06]} Nxf6 {[%emt 0:00:10]} 7. Bg5 {[%emt 0:00:12]} Be7 {[%emt 0:00:52]} 8. Bd3 {[%emt 0:00:08]} h6 {[%emt 0:01:37]} 9. Bh4 {[%emt 0:04:36]} O-O {[%emt 0:02:49]} 10. Qe2 {[%emt 0:02:34]} a5 {[%emt 0:02:12]} 11. c3 {[%emt 0:02:31]} c6 {[%emt 0:02:58]} 12. O-O {[%emt 0:02:31]} Nd5 {[%emt 0:05:39]} 13. Bxe7 {[%emt 0:02:47]} Qxe7 {[%emt 0:00:44]} 14. g3 {[%emt 0:02:34]} b5 {[%emt 0:04:14]} 15. Ne5 {[%emt 0:03:26]} Qd6 {[%emt 0:08:05]} 16. Rfe1 {[%emt 0:09:44]} f6 {[%emt 0:04:17]} 17. Ng6 {[%emt 0:08:31]} Re8 {[%emt 0:01:13]} 18. Qe4 {[%emt 0:02:12]} f5 {[%emt 0:06:48]} 19. Qe5 {[%emt 0:00:29]} Qxe5 {[%emt 0:01:57]} 20. Nxe5 {[%emt 0:00:12]} Bb7 {[%emt 0:00:43]} 21. Nd7 {[%emt 0:02:45]} Rad8 {[%emt 0:04:43]} 22. Nc5 {[%emt 0:00:40]} Bc8 {[%emt 0:00:20]} 23. Rad1 {[%emt 0:08:19]} b4 {[%emt 0:07:00]} 24. c4 {[%emt 0:04:35]} Nb6 {[%emt 0:02:21]} 25. Bf1 {[%emt 0:00:59]} Rd6 {[%emt 0:05:15]} 26. Ne4 {[%emt 0:04:27]} Rdd8 {[%emt 0:05:03]} 27. c5 {[%emt 0:01:22]} Na4 {[%emt 0:04:32]} 28. Nd6 {[%emt 0:00:55]} Nxb2 {[%emt 0:05:35]} 29. Rb1 {[%emt 0:01:22]} Rxd6 {[%emt 0:00:44]} 30. cxd6 {[%emt 0:00:06]} Na4 {[%emt 0:00:47]} 31. a3 {[%emt 0:02:05]} bxa3 {[%emt 0:18:40]} 32. Ra1 {[%emt 0:03:05]} Rd8 {[%emt 0:01:44]} 33. Rxa3 {[%emt 0:00:35]} Nb6 {[%emt 0:00:18]} 34. Rb1 {[%emt 0:01:08]} Nd5 {[%emt 0:01:08]} 35. Rb8 {[%emt 0:00:56]} Rf8 {[%emt 0:01:30]} 36. Rxa5 {[%emt 0:00:50]} Bd7 {[%emt 0:00:23]} 37. Rxf8+ {[%emt 0:10:07]} Kxf8 {[%emt 0:00:01]} 38. Kg2 {[%emt 0:01:50]} Nb6 {[%emt 0:00:57]} 39. Ra7 {[%emt 0:01:18]} Ke8 {[%emt 0:01:10]} 40. Kf3 {[%emt 0:02:19]} Nc8 {[%emt 0:00:47]} 41. Ra8 {[%emt 0:30:37]} Kf7 {[%emt 0:30:39]} 42. Ke3 {[%emt 0:10:59]} Nxd6 {[%emt 0:01:16]} 43. Bg2 {[%emt 0:03:22]} Nb5 {[%emt 0:00:00]} 44. Ra6 {[%emt 0:00:00]} Nc3 {[%emt 0:00:00]} 45. Bxc6 {[%emt 0:00:00]} Bxc6 {[%emt 0:00:00]} 46. Rxc6 {[%emt 0:00:00]} Nd5+ {[%emt 0:00:00]} 47. Kf3 {[%emt 0:00:00] normal} 1/2-1/2

[Event "DVM U12 2019"]
[Site "Magedburg"]
[Date "2019.12.29"]
[Round "5"]
[White "Bungarten, Jona"]
[Black "Nitsche, Nikolai"]
[Result "1-0"]
[ECO "C05"]
[WhiteElo "1750"]
[BlackElo "1808"]
[Annotator "NA"]
[PlyCount "44"]
[EventDate "2019.12.27"]
[EventType "team-tourn"]
[EventRounds "7"]
[EventCountry "GER"]
[SourceTitle "playchess.com"]
[Source "ChessBase"]
[SourceQuality "1"]
[WhiteTeam "SF Brackel"]
[BlackTeam "SV Empor Berlin"]
[WhiteTeamCountry "GER"]
[BlackTeamCountry "GER"]
[TimeControl "40/5400+30:1800+30"]

1. e4 {[%emt 0:00:00]} e6 {[%emt 0:00:00]} 2. d4 {[%emt 0:00:00]} d5 {[%emt 0:00:01]} 3. Nd2 {[%emt 0:00:00]} Nf6 {[%emt 0:00:22]} 4. e5 {[%emt 0:00:00]} Nfd7 {[%emt 0:00:15]} 5. f4 {[%emt 0:00:13]} c5 {[%emt 0:00:22]} 6. c3 {[%emt 0:00:08]} Nc6 {[%emt 0:00:30]} 7. Ndf3 {[%emt 0:00:16]} Qb6 {[%emt 0:00:48]} 8. g3 {[%emt 0:00:14]} cxd4 {[%emt 0:01:52]} 9. cxd4 {[%emt 0:00:11]} Bb4+ {[%emt 0:00:15]} 10. Kf2 {[%emt 0:00:14]} f6 {[%emt 0:00:33]} 11. Kg2 {[%emt 0:00:16]} O-O {[%emt 0:00:55]} 12. Bd3 {[%emt 0:00:31]} Qc7 {[%emt 0:11:16]} 13. Be3 {[%emt 0:04:15]} Nb6 {[%emt 0:04:11]} 14. Rc1 {[%emt 0:01:37]} a5 {[%emt 0:03:14]} 15. h4 {[%emt 0:00:46]} Nc4 {[%emt 0:16:48]} 16. Bxc4 {[%emt 0:04:47]} dxc4 {[%emt 0:00:13]} 17. Rxc4 {[%emt 0:00:16]} b5 {[%emt 0:05:35]} 18. Rc2 {[%emt 0:01:13]} fxe5 {[%emt 0:01:47]} 19. Nxe5 {[%emt 0:01:04]} Bb7 {[%emt 0:00:56]} 20. d5 {[%emt 0:08:33]} exd5 {[%emt 0:00:28]} 21. Qxd5+ {[%emt 0:03:05]} Kh8 {[%emt 0:00:10]} 22. Rxc6 {[%emt 0:04:07] normal} Rac8 {[%emt 0:02:38] normal} 1-0